fUST/lending_fUST_20250127
["ID","MTS","AMOUNT","RATE_DAILY","PERIOD"]
[350570302,1737966635105,-913.52,0.00018904,2]
[350570304,1737966635119,-673.78,0.00018904,2]
[350570307,1737966635134,-579.99,0.00018904,2]
[350570310,1737966635150,-288.7,0.00018904,2]
[350570313,1737966635166,-1255.83,0.00018904,2]
[350570315,1737966635181,-314.19169595,0.00019,2]
[350570318,1737966635196,-190.0,0.00019,2]
[350570320,1737966635210,-861.71,0.00019041,2]
[350570323,1737966635226,-500.0,0.00019041,2]
[350570324,1737966635241,-1886.05,0.00019041,2]
[350570325,1737966635253,-2702.56,0.00019041,2]
[350570326,1737966635269,-8180.67,0.00019041,2]
[350570327,1737966635284,-575.99,0.00019041,2]
[350570328,1737966635299,-827.7,0.00019041,2]
[350570329,1737966635315,-1116.6,0.00019041,2]
[350570330,1737966635333,-2140.05,0.00019041,2]
[350570331,1737966635344,-3559.31,0.00019041,2]
[350570332,1737966635356,-500.0,0.00019041,2]
[350570333,1737966635372,-913.52,0.00019041,2]
[350570334,1737966635387,-673.78,0.00019041,2]
[350570335,1737966635398,-579.99,0.00019041,2]
[350570336,1737966635412,-1255.83,0.00019041,2]
[350570337,1737966635425,-700.0,0.00019068,2]
[350570338,1737966635437,-2502.74,0.000191,2]
[350570339,1737966635449,-861.71,0.00019178,2]
[350570340,1737966635461,-526.06,0.00019178,2]
[350570341,1737966635475,-1886.05,0.00019178,2]
[350570342,1737966635487,-2702.56,0.00019178,2]
[350570343,1737966635498,-8180.67,0.00019178,2]
[350570344,1737966635512,-575.99,0.00019178,2]
[350570345,1737966635525,-827.7,0.00019178,2]
[350570346,1737966635537,-1116.6,0.00019178,2]
[350570347,1737966635549,-2140.05,0.00019178,2]
[350570348,1737966635562,-3559.31,0.00019178,2]
[350570349,1737966635574,-204.73,0.00019178,2]
[350570350,1737966635587,-913.52,0.00019178,2]
[350570351,1737966635600,-673.78,0.00019178,2]
[350570353,1737966635613,-579.99,0.00019178,2]
[350570355,1737966635626,-315.137929,0.00019178,2]
[350570357,1737966635639,-315.137929,0.00019178,2]
[350570358,1737966635651,-1255.83,0.00019178,2]
[350570360,1737966635662,-227.838644,0.00019178,2]
[350570361,1737966635672,-861.71,0.00019315,2]
[350570362,1737966635682,-1886.05,0.00019315,2]
[350570363,1737966635691,-2702.56,0.00019315,2]
[350570364,1737966635701,-8180.67,0.00019315,2]
[350570365,1737966635711,-575.99,0.00019315,2]
[350570366,1737966635721,-827.7,0.00019315,2]
[350570367,1737966635731,-1116.6,0.00019315,2]
[350570368,1737966635749,-2140.05,0.00019315,2]
[350570369,1737966635766,-3559.31,0.00019315,2]
[350570370,1737966635776,-913.52,0.00019315,2]
[350570371,1737966635786,-673.78,0.00019315,2]
[350570372,1737966635795,-579.99,0.00019315,2]
[350570373,1737966635806,-1255.83,0.00019315,2]
[350570374,1737966635816,-861.71,0.00019452,2]
[350570375,1737966635826,-1886.05,0.00019452,2]
[350570376,1737966635836,-2702.56,0.00019452,2]
[350570377,1737966635846,-8180.67,0.00019452,2]
[350570378,1737966635856,-575.99,0.00019452,2]
[350570379,1737966635866,-827.7,0.00019452,2]
[350570380,1737966635876,-1116.6,0.00019452,2]
[350570381,1737966635886,-2140.05,0.00019452,2]
[350570382,1737966635896,-3559.31,0.00019452,2]
[350570383,1737966635905,-913.52,0.00019452,2]
[350570384,1737966635915,-673.78,0.00019452,2]
[350570385,1737966636126,-579.99,0.00019452,2]
[350570386,1737966636140,-1255.83,0.00019452,2]
[350570387,1737966636153,-861.71636303,0.00019589,2]
[350570388,1737966636162,-1886.21,0.00019589,2]
[350570389,1737966636172,-2702.71,0.00019589,2]
[350570390,1737966636181,-8180.6773,0.00019589,2]
[350570391,1737966636191,-576.01,0.00019589,2]
[350570392,1737966636200,-827.90928433,0.00019589,2]
[350570393,1737966636209,-1116.62,0.00019589,2]
[350570394,1737966636219,-2140.1811722,0.00019589,2]
[350570395,1737966636228,-3559.32,0.00019589,2]
[350570396,1737966636237,-913.7,0.00019589,2]
[350570397,1737966636247,-673.83,0.00019589,2]
[350570398,1737966636256,-580.02,0.00019589,2]
[350570399,1737966636268,-1255.9440907,0.00019589,2]
[350570400,1737966636277,-253.0,0.00019631,2]
[350570401,1737966636287,-160.0,0.0002,2]
[350570402,1737966636296,-1741.81170134,0.0002,30]
[350570403,1737966636305,-1782.3776598,0.0002,30]
[350570404,1737966636314,-156.45210517,0.00020041,2]
[350570405,1737966636324,-700.0,0.00020164,2]
[350570406,1737966636333,-1000.0,0.0002018,2]
[350570407,1737966636342,-214.781166,0.00020447,2]
[350570408,1737966636351,-700.0,0.0002126,2]
[350570409,1737966636360,-156.45210517,0.00021275,2]
[350570410,1737966636369,-383.126,0.0002147,2]
[350570411,1737966636378,-161.693565,0.00021483,2]
[350570412,1737966636387,-983.47,0.000217,2]
[350570413,1737966636396,-1755.17,0.000217,2]
[350570414,1737966636408,-151.0,0.00021918,2]
[350570415,1737966636418,-88067.63675159,0.0002199,7]
[350570416,1737966636427,-160.0,0.0002199,7]
[350570417,1737966636436,-151.0,0.00022,3]
[350570418,1737966636445,-700.0,0.00022356,2]
[350570419,1737966636454,-257.2122928,0.0002237,2]
[350570420,1737966636464,-152.85,0.000225,31]
[350570421,1737966636474,-152.85,0.000225,31]
[350570422,1737966636484,-152.85,0.000225,31]
[350570423,1737966636493,-152.85,0.000225,31]
[350570424,1737966636505,-152.85,0.000225,31]
[350570425,1737966636516,-152.85,0.000225,31]
[350570426,1737966636526,-152.85,0.000225,31]
[350570427,1737966636537,-160.0,0.00022505,3]
[350570428,1737966636546,-622.918212,0.00022505,7]
[350570429,1737966636556,-622.918212,0.00022505,7]
[350570430,1737966636565,-156.45210517,0.0002251,2]
[350570431,1737966636574,-2502.74,0.000226,2]
[350570432,1737966636584,-150.0,0.000226,5]
[350570433,1737966636593,-151.0,0.00022604,7]
[350570434,1737966636602,-291.787161,0.00022604,7]
[350570435,1737966636612,-153.48218,0.00022604,7]
[350570436,1737966636621,-153.48218,0.00022604,7]
[350570437,1737966636631,-153.48218,0.00022604,7]
[350570438,1737966636640,-153.48218,0.00022604,7]
[350570439,1737966636649,-153.48218,0.00022604,7]
[350570440,1737966636658,-153.48218,0.00022604,7]
[350570441,1737966636667,-153.48218,0.00022604,7]
[350570442,1737966636677,-153.48218,0.00022604,7]
[350570443,1737966636687,-153.48218,0.00022604,7]
[350570444,1737966636696,-153.48218,0.00022604,7]
[350570445,1737966636705,-153.48218,0.00022604,7]
[350570446,1737966636714,-153.48218,0.00022604,7]
[350570447,1737966636724,-153.48218,0.00022604,7]
[350570448,1737966636733,-153.48218,0.00022604,7]
[350570449,1737966636742,-153.48218,0.00022604,7]
[350570450,1737966636753,-153.48218,0.00022604,7]
[350570451,1737966636763,-153.48218,0.00022604,7]
[350570452,1737966636773,-153.48218,0.00022604,7]
[350570453,1737966636783,-153.48218,0.00022604,7]
[350570454,1737966636792,-153.482179,0.00022604,7]
[350570455,1737966636801,-500.0,0.00022605,14]
[350570456,1737966636811,-150.03,0.00022605,14]
[350570457,1737966636820,-299.86,0.00022605,14]
[350570458,1737966636830,-150.03,0.00022605,14]
[350570459,1737966636839,-599.0,0.00022605,3]
[350570460,1737966636849,-500.0,0.00022605,14]
[350570461,1737966636858,-150.03,0.00022605,14]
[350570462,1737966636867,-150.03,0.00022605,2]
[350570463,1737966636876,-299.86,0.00022605,14]
[350570464,1737966636887,-277.59389298,0.00022605,14]
[350570465,1737966636896,-150.03,0.00022605,14]
[350570466,1737966636906,-160.0,0.00022606,7]
[350570467,1737966636915,-151.0,0.0002261,7]
[350570468,1737966636924,-264.395375,0.0002261,7]
[350570469,1737966636933,-315.137929,0.0002261,7]
[350570470,1737966636942,-315.137929,0.0002261,7]
[350570471,1737966636951,-315.137929,0.0002261,7]
[350570472,1737966636961,-315.137929,0.0002261,7]
[350570473,1737966636970,-315.137929,0.0002261,7]
[350570474,1737966636979,-315.137929,0.0002261,7]
[350570475,1737966636989,-315.137929,0.0002261,7]
[350570476,1737966636998,-315.137929,0.0002261,7]
[350570477,1737966637009,-315.137929,0.0002261,7]
[350570478,1737966637018,-315.137929,0.0002261,7]
[350570479,1737966637027,-315.137929,0.0002261,7]
[350570480,1737966637036,-315.137929,0.0002261,7]
[350570481,1737966637045,-315.137929,0.0002261,7]
[350570482,1737966637054,-315.137933,0.0002261,7]
[350570483,1737966637063,-622.918212,0.0002261,7]
[350570484,1737966637076,-622.918212,0.0002261,7]
[350570485,1737966637085,-622.918212,0.0002261,7]
[350570486,1737966637094,-622.918212,0.0002261,7]
[350570487,1737966637103,-622.918212,0.0002261,7]
[350570488,1737966637114,-622.918212,0.0002261,7]
[350570489,1737966637123,-622.918212,0.0002261,7]
[350570490,1737966637133,-622.918212,0.0002261,7]
[350570491,1737966637142,-622.918212,0.0002261,7]
[350570492,1737966637154,-622.918212,0.0002261,7]
[350570493,1737966637163,-622.918212,0.0002261,7]
[350570494,1737966637173,-622.918215,0.0002261,7]
[350570495,1737966637182,-868728.75614784,0.0002261,61]
[350570496,1737966637206,-137100.4949405,0.0002261,61]
[350570497,1737966637220,-10262.61957629,0.0002261,61]
[350570534,1737966638211,-500.0,0.00016438,2]
[350570536,1737966638220,-500.0,0.00016438,2]
[350570538,1737966638230,-500.0,0.00016575,2]
[350570540,1737966638239,-500.11955808,0.00016712,2]
[350570542,1737966638249,-286.6863766,0.00018081,2]
[350570544,1737966638260,-500.0,0.00018081,2]
[350570546,1737966638270,-500.0,0.00018081,2]
[350570548,1737966638280,-500.0,0.00018081,2]
[350570550,1737966638289,-500.0,0.00018081,2]
[350570552,1737966638298,-500.0,0.00018081,2]
[350570554,1737966638308,-500.0,0.00018081,2]
[350570556,1737966638317,-500.0,0.00018081,2]
[350570558,1737966638327,-561.30855,0.00018081,2]
[350570559,1737966638336,-500.0,0.00018081,2]
[350570560,1737966638346,-173.11024783,0.00018081,2]
[350570561,1737966638356,-4781.7821261,0.0002261,5]
[350570562,1737966638365,-68196.99314139,0.0002261,61]
[350570563,1737966638377,-2562.4022144,0.0002261,61]
[350570566,1737966639763,-132256.46188009,0.0002261,61]
[350570567,1737966639809,-32342.58274875,0.0002261,61]
[350570573,1737966640041,-610.02460827,0.0002261,61]
[350570575,1737966640053,-1650.70539173,0.0002261,61]
[350570610,1737966642453,-500.11,0.00016438,2]
[350570611,1737966642462,-500.11,0.00016438,2]
[350570612,1737966642471,-500.11,0.00016438,2]
[350570613,1737966642480,-500.11,0.00016438,2]
[350570614,1737966642489,-500.11,0.00016438,2]
[350570615,1737966642498,-500.11,0.00016438,2]
[350570616,1737966642507,-345.090378,0.0002261,61]
[350570617,1737966642520,-757.17749319,0.0002261,61]
[350570618,1737966642531,-4702.0724097,0.0002261,61]
[350570619,1737966642542,-4144.01674424,0.0002261,61]
[350570620,1737966642553,-990.54,0.0002261,61]
[350570621,1737966642564,-1359.39335149,0.0002261,61]
[350570689,1737966643386,-500.11,0.00016438,2]
[350570691,1737966643395,-500.11,0.00016438,2]
[350570693,1737966643405,-500.11,0.00016438,2]
[350570695,1737966643414,-500.11,0.00016438,2]
[350570697,1737966643424,-500.11,0.00016438,2]
[350570698,1737966643433,-500.11,0.00016438,2]
[350570700,1737966643442,-38829.35192888,0.0002261,61]
[350570703,1737966643455,-5040.76561235,0.0002261,61]
[350570705,1737966643466,-10860.69568173,0.0002261,61]
[350570716,1737966643560,-500.11,0.00016573,2]
[350570719,1737966643569,-9277.8779854,0.0002261,61]
[350570977,1737966646430,-500.0,0.00016438,2]
[350570978,1737966646439,-500.11,0.00016574,2]
[350570979,1737966646449,-500.11,0.00016574,2]
[350570980,1737966646458,-13.22179289,0.00016574,2]
[350571010,1737966656368,-2477.43389298,0.00021144,30]
[350571014,1737966762365,208.02,0.00010959,2]
[350571015,1737966772836,173.35,0.00010959,2]
[350571016,1737966783323,866.77,0.00010959,2]
[350571017,1737967028038,152.87,0.000225,31]
[350571018,1737967028084,152.87,0.000225,31]
[350571019,1737967028145,152.87,0.000225,31]
[350571020,1737967028213,193.303049,0.00013973,2]
[350571021,1737967028244,152.87,0.000225,31]
[350571022,1737967028274,152.87,0.000225,31]
[350571023,1737967028329,152.87,0.000225,31]
[350571024,1737967028396,152.73,0.000225,31]
[350571027,1737967559529,2501.50859189,0.00015019,2]
[350571028,1737967632145,-2636.72316469,0.00015119,2]
[350571029,1737967632167,-706.8041406,0.00015176,2]
[350571030,1737967632188,-300.0,0.0001541,2]
[350571031,1737967632211,-24900.0,0.00015411,2]
[350571032,1737967632233,-463.467286,0.00015438,2]
[350571033,1737967632257,-288.09920348,0.00016,2]
[350571034,1737967632279,-10812.42982944,0.00016111,2]
[350571035,1737967632301,-167.27176839,0.00016337,2]
[350571036,1737967632323,-169.81960081,0.00016337,2]
[350571037,1737967632344,-169.81960079,0.00016338,2]
[350571038,1737967632368,-189.15210496,0.00016338,2]
[350571039,1737967632391,-169.81960079,0.00016338,2]
[350571040,1737967632413,-1626.03245193,0.00016437,2]
[350571041,1737967632436,-176.58071581,0.00016437,2]
[350571042,1737967632457,-500.0,0.00016437,2]
[350571043,1737967632482,-213.79351879,0.00016437,2]
[350571044,1737967632506,-500.0,0.00016437,2]
[350571045,1737967632529,-500.0,0.00016437,2]
[350571046,1737967632554,-500.0,0.00016437,2]
[350571047,1737967632576,-500.0,0.00016437,2]
[350571048,1737967632596,-500.0,0.00016437,2]
[350571049,1737967632621,-500.0,0.00016437,2]
[350571050,1737967632641,-500.0,0.00016437,2]
[350571051,1737967632663,-500.0,0.00016437,2]
[350571052,1737967632684,-500.0,0.00016437,2]
[350571053,1737967632705,-246.28373392,0.00016437,2]
[350571054,1737967632730,-500.0,0.00016437,2]
[350571055,1737967632752,-500.0,0.00016437,2]
[350571056,1737967632777,-500.0,0.00016437,2]
[350571057,1737967632799,-500.0,0.00016437,2]
[350571058,1737967632822,-500.0,0.00016437,2]
[350571059,1737967632845,-500.0,0.00016437,2]
[350571060,1737967632867,-500.0,0.00016437,2]
[350571061,1737967632891,-500.0,0.00016437,2]
[350571062,1737967632919,-500.0,0.00016437,2]
[350571063,1737967632944,-495.65760766,0.00016437,2]
[350571064,1737967632968,-500.0,0.00016437,2]
[350571065,1737967632991,-500.0,0.00016437,2]
[350571066,1737967633018,-500.0,0.00016437,2]
[350571067,1737967633041,-251.14011322,0.00016437,2]
[350571068,1737967633062,-349.3980664,0.00016437,2]
[350571069,1737967633087,-502.66595979,0.00016438,2]
[350571070,1737967633109,-502.36438095,0.00016438,2]
[350571071,1737967633132,-503.59783161,0.00016438,2]
[350571072,1737967633156,-500.0,0.00016438,2]
[350571073,1737967633179,-535.26957842,0.00016438,2]
[350571074,1737967633201,-501.87761352,0.00016438,2]
[350571075,1737967633224,-500.0,0.00016438,2]
[350571076,1737967633246,-500.0,0.00016438,2]
[350571077,1737967633268,-500.0,0.00016438,2]
[350571078,1737967633290,-200.0,0.00016438,2]
[350571079,1737967633311,-502.54787831,0.00016438,2]
[350571080,1737967633334,-467.74358154,0.00016438,2]
[350571081,1737967633355,-500.0,0.00016438,2]
[350571082,1737967633377,-500.0,0.00016438,2]
[350571083,1737967633401,-505.30386479,0.00016438,2]
[350571084,1737967633423,-504.00889687,0.00016438,2]
[350571085,1737967633445,-500.0,0.00016438,2]
[350571086,1737967633466,-501.71050331,0.00016438,2]
[350571087,1737967633487,-501.77718779,0.00016438,2]
[350571088,1737967633510,-500.0,0.00016438,2]
[350571089,1737967633531,-500.0,0.00016438,2]
[350571090,1737967633554,-500.0,0.00016438,2]
[350571091,1737967633575,-503.54681865,0.00016438,2]
[350571092,1737967633596,-500.0,0.00016438,2]
[350571093,1737967633618,-500.0,0.00016438,2]
[350571094,1737967633640,-500.0,0.00016438,2]
[350571095,1737967633662,-500.0,0.00016438,2]
[350571096,1737967633684,-500.0,0.00016438,2]
[350571097,1737967633705,-500.0,0.00016438,2]
[350571098,1737967633850,-500.0,0.00016438,2]
[350571099,1737967633873,-502.59010791,0.00016438,2]
[350571100,1737967633896,-500.0,0.00016438,2]
[350571101,1737967633918,-511.0365974,0.00016438,2]
[350571102,1737967633940,-500.0,0.00016438,2]
[350571103,1737967633965,-632.92704558,0.00016438,2]
[350571104,1737967633988,-500.0,0.00016438,2]
[350571105,1737967634013,-501.90805938,0.00016438,2]
[350571106,1737967634036,-500.0,0.00016438,2]
[350571107,1737967634059,-504.5196841,0.00016438,2]
[350571108,1737967634081,-413.96045863,0.00016438,2]
[350571109,1737967634103,-500.0,0.00016438,2]
[350571110,1737967634125,-500.0,0.00016438,2]
[350571111,1737967634149,-500.0,0.00016438,2]
[350571112,1737967634170,-506.17343592,0.00016438,2]
[350571113,1737967634192,-500.0,0.00016438,2]
[350571114,1737967634215,-500.0,0.00016438,2]
[350571115,1737967634237,-362.4196949,0.00016438,2]
[350571116,1737967634261,-500.0,0.00016438,2]
[350571117,1737967634285,-173.33817922,0.00016438,2]
[350571118,1737967634308,-500.0,0.00016438,2]
[350571119,1737967634329,-500.0,0.00016438,2]
[350571120,1737967634351,-500.0,0.00016438,2]
[350571121,1737967634376,-500.0,0.00016438,2]
[350571122,1737967634398,-502.23257628,0.00016438,2]
[350571123,1737967634421,-500.0,0.00016438,2]
[350571124,1737967634443,-512.0629643,0.00016438,2]
[350571125,1737967634466,-484.19107989,0.00016438,2]
[350571126,1737967634487,-218.53171221,0.00016438,2]
[350571127,1737967634532,-500.0,0.00016438,2]
[350571128,1737967634581,-500.0,0.00016438,2]
[350571129,1737967634631,-503.78142801,0.00016438,2]
[350571130,1737967634681,-412.84799999,0.00016438,2]
[350571131,1737967634708,-500.0,0.00016438,2]
[350571132,1737967634731,-500.0,0.00016438,2]
[350571133,1737967634754,-504.82682776,0.00016438,2]
[350571134,1737967634778,-500.0,0.00016438,2]
[350571135,1737967634803,-500.0,0.00016438,2]
[350571136,1737967634826,-595.78220404,0.00016438,2]
[350571137,1737967634849,-502.65866558,0.00016438,2]
[350571138,1737967634873,-500.0,0.00016438,2]
[350571139,1737967634896,-500.0,0.00016438,2]
[350571140,1737967634919,-381.85925877,0.00016438,2]
[350571141,1737967634942,-500.0,0.00016438,2]
[350571142,1737967634966,-500.0,0.00016438,2]
[350571143,1737967634989,-500.0,0.00016438,2]
[350571144,1737967635016,-500.0,0.00016438,2]
[350571145,1737967635040,-500.0,0.00016438,2]
[350571146,1737967635063,-530.4,0.00016438,2]
[350571147,1737967635085,-500.0,0.00016438,2]
[350571148,1737967635109,-612.66043186,0.00016438,2]
[350571149,1737967635132,-500.0,0.00016438,2]
[350571150,1737967635156,-500.0,0.00016438,2]
[350571151,1737967635178,-500.0,0.00016438,2]
[350571152,1737967635200,-500.0,0.00016438,2]
[350571153,1737967635223,-500.0,0.00016438,2]
[350571154,1737967635245,-500.0,0.00016438,2]
[350571155,1737967635267,-500.0,0.00016438,2]
[350571156,1737967635289,-500.0,0.00016438,2]
[350571157,1737967635311,-500.0,0.00016438,2]
[350571158,1737967635336,-500.0,0.00016438,2]
[350571159,1737967635358,-500.0,0.00016438,2]
[350571160,1737967635383,-500.0,0.00016438,2]
[350571161,1737967635405,-500.0,0.00016438,2]
[350571162,1737967635428,-500.0,0.00016438,2]
[350571163,1737967635450,-500.0,0.00016438,2]
[350571164,1737967635472,-232.7153414,0.00016438,2]
[350571165,1737967635494,-500.0,0.00016438,2]
[350571166,1737967635518,-500.0,0.00016438,2]
[350571167,1737967635540,-500.0,0.00016438,2]
[350571168,1737967635562,-503.56600726,0.00016438,2]
[350571169,1737967635584,-500.0,0.00016438,2]
[350571170,1737967635606,-500.0,0.00016438,2]
[350571171,1737967635627,-500.0,0.00016438,2]
[350571172,1737967635649,-500.0,0.00016438,2]
[350571173,1737967635670,-500.0,0.00016438,2]
[350571174,1737967635692,-500.0,0.00016438,2]
[350571175,1737967635714,-500.0,0.00016438,2]
[350571176,1737967635735,-503.84730863,0.00016438,2]
[350571177,1737967635758,-500.0,0.00016438,2]
[350571178,1737967635779,-500.0,0.00016438,2]
[350571179,1737967635800,-500.0,0.00016438,2]
[350571180,1737967635822,-610.08253619,0.00016438,2]
[350571181,1737967635844,-500.0,0.00016438,2]
[350571182,1737967635867,-500.0,0.00016438,2]
[350571183,1737967635889,-500.0,0.00016438,2]
[350571184,1737967635911,-546.36,0.00016438,2]
[350571185,1737967635934,-500.0,0.00016438,2]
[350571186,1737967635959,-500.0,0.00016438,2]
[350571187,1737967635980,-500.0,0.00016438,2]
[350571188,1737967636003,-504.04473177,0.00016438,2]
[350571189,1737967636026,-500.0,0.00016438,2]
[350571190,1737967636048,-500.0,0.00016438,2]
[350571191,1737967636070,-503.46484979,0.00016438,2]
[350571192,1737967636092,-500.0,0.00016438,2]
[350571193,1737967636113,-484.21608894,0.00016438,2]
[350571194,1737967636134,-502.32509964,0.00016438,2]
[350571195,1737967636156,-500.0,0.00016438,2]
[350571196,1737967636178,-500.0,0.00016438,2]
[350571197,1737967636203,-500.0,0.00016438,2]
[350571198,1737967636226,-500.0,0.00016438,2]
[350571199,1737967636250,-500.0,0.00016438,2]
[350571200,1737967636272,-500.0,0.00016438,2]
[350571201,1737967636294,-500.0,0.00016438,2]
[350571202,1737967636316,-503.56454569,0.00016438,2]
[350571203,1737967636338,-508.74,0.00016438,2]
[350571204,1737967636359,-480.49370478,0.00016438,2]
[350571205,1737967636385,-505.99412272,0.00016438,2]
[350571206,1737967636407,-508.90202279,0.00016438,2]
[350571207,1737967636430,-500.0,0.00016438,2]
[350571208,1737967636452,-500.0,0.00016438,2]
[350571209,1737967636477,-500.0,0.00016438,2]
[350571210,1737967636501,-500.0,0.00016438,2]
[350571211,1737967636522,-500.0,0.00016438,2]
[350571212,1737967636544,-500.0,0.00016438,2]
[350571213,1737967636566,-353.1143,0.00016438,2]
[350571214,1737967636588,-500.0,0.00016438,2]
[350571215,1737967636610,-500.0,0.00016438,2]
[350571216,1737967636631,-500.0,0.00016438,2]
[350571217,1737967636653,-500.0,0.00016438,2]
[350571218,1737967636675,-500.0,0.00016438,2]
[350571219,1737967636696,-500.0,0.00016438,2]
[350571220,1737967636718,-500.0,0.00016438,2]
[350571221,1737967636739,-500.0,0.00016438,2]
[350571222,1737967636762,-500.0,0.00016438,2]
[350571223,1737967636783,-500.0,0.00016438,2]
[350571224,1737967636804,-417.97285561,0.00016438,2]
[350571225,1737967636826,-500.0,0.00016438,2]
[350571226,1737967636847,-500.0,0.00016438,2]
[350571227,1737967636868,-500.0,0.00016438,2]
[350571228,1737967636890,-500.0,0.00016438,2]
[350571229,1737967636912,-500.0,0.00016438,2]
[350571230,1737967636934,-500.0,0.00016438,2]
[350571231,1737967636955,-360.81873424,0.00016438,2]
[350571232,1737967636977,-500.0,0.00016438,2]
[350571233,1737967637145,-500.0,0.00016438,2]
[350571234,1737967637170,-500.0,0.00016438,2]
[350571235,1737967637193,-245.47472581,0.00016438,2]
[350571236,1737967637215,-500.0,0.00016438,2]
[350571237,1737967637239,-500.0,0.00016438,2]
[350571238,1737967637267,-500.0,0.00016438,2]
[350571239,1737967637293,-500.0,0.00016438,2]
[350571240,1737967637316,-500.0,0.00016438,2]
[350571241,1737967637342,-500.0,0.00016438,2]
[350571242,1737967637369,-500.0,0.00016438,2]
[350571243,1737967637394,-500.0,0.00016438,2]
[350571244,1737967637418,-543.74382194,0.00016438,2]
[350571245,1737967637441,-500.0,0.00016438,2]
[350571246,1737967637465,-410.05221782,0.00016438,2]
[350571247,1737967637488,-500.0,0.00016438,2]
[350571248,1737967637514,-500.0,0.00016438,2]
[350571249,1737967637537,-500.0,0.00016438,2]
[350571250,1737967637561,-500.0,0.00016438,2]
[350571251,1737967637583,-500.0,0.00016438,2]
[350571252,1737967637606,-500.0,0.00016438,2]
[350571253,1737967637629,-500.0,0.00016438,2]
[350571254,1737967637652,-500.0,0.00016438,2]
[350571255,1737967637674,-500.0,0.00016438,2]
[350571256,1737967637697,-500.0,0.00016438,2]
[350571257,1737967637719,-506.46542214,0.00016438,2]
[350571258,1737967637742,-500.0,0.00016438,2]
[350571259,1737967637767,-500.0,0.00016438,2]
[350571260,1737967637789,-500.0,0.00016438,2]
[350571261,1737967637810,-507.68449216,0.00016438,2]
[350571262,1737967637834,-689.41,0.00016438,2]
[350571263,1737967637857,-500.0,0.00016438,2]
[350571264,1737967637878,-500.0,0.00016438,2]
[350571265,1737967637900,-500.0,0.00016438,2]
[350571266,1737967637922,-500.0,0.00016438,2]
[350571267,1737967637947,-807.67,0.00016438,2]
[350571268,1737967637970,-500.0,0.00016438,2]
[350571269,1737967637992,-500.0,0.00016438,2]
[350571270,1737967638014,-500.0,0.00016438,2]
[350571271,1737967638036,-500.0,0.00016438,2]
[350571272,1737967638059,-500.0,0.00016438,2]
[350571273,1737967638082,-500.0,0.00016438,2]
[350571274,1737967638105,-500.0,0.00016438,2]
[350571275,1737967638130,-500.0,0.00016438,2]
[350571276,1737967638153,-500.0,0.00016438,2]
[350571277,1737967638175,-500.0,0.00016438,2]
[350571278,1737967638197,-500.0,0.00016438,2]
[350571279,1737967638222,-4818.15,0.00016438,2]
[350571280,1737967638245,-500.0,0.00016438,2]
[350571281,1737967638276,-500.0,0.00016438,2]
[350571282,1737967638303,-500.0,0.00016438,2]
[350571283,1737967638327,-515.29609466,0.00016438,2]
[350571284,1737967638350,-500.0,0.00016438,2]
[350571285,1737967638379,-500.0,0.00016438,2]
[350571286,1737967638406,-500.0,0.00016438,2]